fUST/lending_fUST_20250821
["ID","MTS","AMOUNT","RATE_DAILY","PERIOD"]
[380399586,1755732632481,-850.19,0.0002469,3]
[380399587,1755732632491,-554.97616612,0.0002469,10]
[380399588,1755732632500,-500.0,0.00024699,2]
[380399589,1755732632509,-348.15129209,0.00024699,2]
[380399590,1755732632518,-291.74630722,0.00024699,2]
[380399591,1755732632528,-243.99638212,0.00024699,2]
[380399592,1755732632537,-500.0,0.00024699,2]
[380399593,1755732632546,-645.84,0.00024699,2]
[380399594,1755732632558,-38294.82133893,0.000247,2]
[380399595,1755732632570,-27476.84195303,0.000247,2]
[380399606,1755732638106,-199.0,0.0002459,10]
[380399608,1755732638115,-304228.33670804,0.000247,2]
[380399610,1755732638125,-3101.31,0.000247,7]
[380399621,1755732638212,-586.22,0.000247,7]
[380399623,1755732638221,-1102.03978781,0.00024773,2]
[380399625,1755732638231,-151.83,0.00024799,2]
[380399627,1755732638240,-172.57443399,0.000248,2]
[380399629,1755732638249,-9504.64253736,0.000248,2]
[380399631,1755732638258,-151.0,0.000248,9]
[380399633,1755732638267,-151.0,0.000248,9]
[380399635,1755732638276,-607.97,0.00024821,2]
[380399637,1755732638285,-500.0,0.00024873,2]
[380399638,1755732638295,-500.0,0.00024873,2]
[380399640,1755732638304,-500.0,0.00024873,2]
[380399642,1755732638315,-500.0,0.00024873,2]
[380399644,1755732638325,-500.0,0.00024873,2]
[380399646,1755732638334,-500.0,0.00024873,2]
[380399648,1755732638343,-500.0,0.00024873,2]
[380399650,1755732638353,-500.0,0.00024873,2]
[380399653,1755732638362,-500.0,0.00024873,2]
[380399654,1755732638371,-500.0,0.00024873,2]
[380399656,1755732638380,-500.0,0.00024889,2]
[380399658,1755732638390,-500.0,0.00024899,2]
[380399660,1755732638399,-712.38907184,0.00024899,2]
[380399663,1755732638408,-712.38907184,0.00024899,2]
[380399665,1755732638418,-712.38907184,0.00024899,2]
[380399666,1755732638427,-614.85784124,0.00024899,2]
[380399668,1755732638436,-712.38907184,0.00024899,2]
[380399670,1755732638445,-712.38907184,0.00024899,2]
[380399672,1755732638454,-712.38907184,0.00024899,2]
[380399674,1755732638463,-712.38907184,0.00024899,2]
[380399676,1755732638474,-712.38907184,0.00024899,2]
[380399678,1755732638485,-712.38907184,0.00024899,2]
[380399680,1755732638494,-712.38907184,0.00024899,2]
[380399682,1755732638503,-712.38907184,0.00024899,2]
[380399684,1755732638512,-712.38907184,0.00024899,2]
[380399686,1755732638522,-712.38907184,0.00024899,2]
[380399688,1755732638532,-712.38907184,0.00024899,2]
[380399690,1755732638541,-712.38907184,0.00024899,2]
[380399692,1755732638550,-712.38907184,0.00024899,2]
[380399694,1755732638560,-712.38907184,0.00024899,2]
[380399696,1755732638569,-756.22839933,0.00024899,2]
[380399698,1755732638581,-756.22839933,0.00024899,2]
[380399700,1755732638590,-756.22839933,0.00024899,2]
[380399702,1755732638599,-756.22839933,0.00024899,2]
[380399704,1755732638608,-756.22839933,0.00024899,2]
[380399706,1755732638617,-756.22839933,0.00024899,2]
[380399708,1755732638626,-756.22839933,0.00024899,2]
[380399710,1755732638635,-756.22839933,0.00024899,2]
[380399712,1755732638645,-879.97486467,0.00024899,2]
[380399714,1755732638654,-879.97486467,0.00024899,2]
[380399716,1755732638666,-178.21846375,0.00024899,2]
[380399718,1755732638676,-151.0,0.000249,5]
[380399720,1755732638685,-748375.546402,0.000249,2]
[380399723,1755732638701,-151.0,0.000249,9]
[380399726,1755732638717,-151.0,0.000249,5]
[380399729,1755732638734,-163.482523,0.00024907,2]
[380399731,1755732638752,-2046.88959096,0.00025,14]
[380399735,1755732638770,-16062.64592512,0.00025,2]
[380399737,1755732638787,-330.85952061,0.00025016,2]
[380399740,1755732638803,-180.72397984,0.00025086,2]
[380399743,1755732638817,-500.0,0.00025163,2]
[380399745,1755732638831,-2220.64256171,0.00025254,2]
[380399748,1755732638847,-1102.03978781,0.00025262,2]
[380399751,1755732638866,-1540.76771194,0.00025402,2]
[380399753,1755732638882,-393.13424247,0.00025421,2]
[380399756,1755732638896,-1000.0,0.00025421,2]
[380399759,1755732638913,-1000.0,0.00025421,2]
[380399762,1755732638929,-500.0,0.00025437,2]
[380399764,1755732638943,-900.0,0.00025469,3]
[380399766,1755732638956,-1188.08031717,0.00025501,2]
[380399769,1755732638970,-1562.0,0.00025511,2]
[380399771,1755732638984,-619.0371092,0.00025513,3]
[380399774,1755732638998,-151.0,0.00025535,2]
[380399776,1755732639012,-151.0,0.00025535,2]
[380399779,1755732639027,-2183.31810187,0.00025535,2]
[380399781,1755732639041,-151.0,0.00025535,2]
[380399784,1755732639055,-300.0,0.00025535,2]
[380399786,1755732639069,-151.0,0.00025535,2]
[380399789,1755732639083,-151.0,0.00025535,2]
[380399791,1755732639097,-300.0,0.00025535,2]
[380399794,1755732639111,-151.0,0.00025535,2]
[380399796,1755732639125,-151.0,0.00025535,2]
[380399799,1755732639139,-151.0,0.00025535,2]
[380399801,1755732639153,-300.0,0.00025535,2]
[380399804,1755732639167,-151.0,0.00025535,2]
[380399806,1755732639181,-151.0,0.00025535,2]
[380399809,1755732639195,-151.0,0.00025535,2]
[380399811,1755732639209,-300.0,0.00025535,2]
[380399814,1755732639223,-151.0,0.00025535,2]
[380399816,1755732639237,-151.0,0.00025535,2]
[380399819,1755732639251,-151.0,0.00025535,2]
[380399821,1755732639266,-151.0,0.00025535,2]
[380399824,1755732639279,-151.0,0.00025535,2]
[380399826,1755732639294,-151.0,0.00025535,2]
[380399829,1755732639308,-151.0,0.00025535,2]
[380399831,1755732639322,-300.0,0.00025535,2]
[380399834,1755732639335,-151.0,0.00025535,2]
[380399836,1755732639349,-151.0,0.00025535,2]
[380399839,1755732639363,-151.0,0.00025535,2]
[380399841,1755732639377,-300.0,0.00025535,2]
[380399843,1755732639390,-151.0,0.00025535,2]
[380399846,1755732639404,-151.0,0.00025535,2]
[380399849,1755732639418,-151.0,0.00025535,2]
[380399851,1755732639433,-151.0,0.00025535,2]
[380399863,1755732639540,-151.0,0.00025535,2]
[380399866,1755732639556,-151.0,0.00025535,2]
[380399868,1755732639566,-151.0,0.00025535,2]
[380399870,1755732639576,-151.0,0.00025535,2]
[380399872,1755732639585,-290.92949727,0.00025535,2]
[380399874,1755732639594,-151.0,0.00025535,2]
[380399876,1755732639603,-151.0,0.00025535,2]
[380399878,1755732639612,-151.0,0.00025535,2]
[380399880,1755732639621,-151.0,0.00025535,2]
[380399882,1755732639630,-151.0,0.00025535,2]
[380399884,1755732639639,-17842.522448,0.00025535,2]
[380399886,1755732639649,-302.0,0.00025535,2]
[380399888,1755732639658,-160.0,0.000256,2]
[380399890,1755732639666,-607.97,0.00025643,2]
[380399891,1755732639676,-168.0,0.00025652,2]
[380399893,1755732639685,-161.84881539,0.00025671,30]
[380399895,1755732639694,-3101.31,0.000257,7]
[380399897,1755732639703,-586.22,0.000257,7]
[380399899,1755732639713,-500.0,0.00025711,2]
[380399902,1755732639722,-1102.03978781,0.0002575,2]
[380399904,1755732639731,-168.0,0.00025818,7]
[380399906,1755732639740,-420.0,0.00025856,2]
[380399908,1755732639750,-1619.86937538,0.000259,2]
[380399910,1755732639759,-2220.64256171,0.00025908,2]
[380399912,1755732639768,-3400.07427249,0.00025908,2]
[380399914,1755732639777,-1000.0,0.00025934,5]
[380399916,1755732639787,-762.6787284,0.00025945,2]
[380399918,1755732639796,-168.0,0.00025956,2]
[380399920,1755732639805,-231.60244695,0.00025968,2]
[380399922,1755732639815,-1500.0,0.00025968,2]
[380399924,1755732639823,-500.0,0.00025973,2]
[380399926,1755732639833,-500.81515857,0.00025973,2]
[380399928,1755732639841,-392.92873309,0.00025973,2]
[380399930,1755732639850,-500.0,0.00025985,2]
[380399932,1755732639859,-250.0,0.00025992,2]
[380399934,1755732639869,-161.84881539,0.00026,30]
[380399936,1755732639877,-161.8488154,0.00026,30]
[380399938,1755732639887,-38832.12316182,0.00026,10]
[380399940,1755732639897,-1847.17576609,0.00026,7]
[380399942,1755732639906,-11798.15120804,0.00026,30]
[380399944,1755732639915,-844.05985274,0.00026,10]
[380399946,1755732639925,-331846.58333519,0.00026,15]
[380399948,1755732639938,-79570.62201745,0.00026,15]
[380399950,1755732639947,-215.82729805,0.00026,10]
[380399952,1755732639957,-448.232544,0.00026,7]
[380399954,1755732639966,-448.232544,0.00026,7]
[380399956,1755732639975,-151.0,0.00026,7]
[380399958,1755732639985,-448.232544,0.00026,7]
[380399960,1755732639994,-448.232544,0.00026,7]
[380399962,1755732640003,-151.0,0.00026,7]
[380399964,1755732640012,-151.0,0.00026,7]
[380399966,1755732640021,-151.0,0.00026,7]
[380399968,1755732640030,-151.0,0.00026,7]
[380399970,1755732640039,-151.0,0.00026,7]
[380399972,1755732640048,-151.0,0.00026,7]
[380399974,1755732640057,-151.0,0.00026,7]
[380399976,1755732640066,-1188.08031717,0.00026035,2]
[380399978,1755732640075,-762.6787284,0.00026045,2]
[380399980,1755732640085,-566.78,0.0002606,3]
[380399982,1755732640094,-762.6787284,0.00026145,2]
[380399984,1755732640103,-260.0,0.00026148,2]
[380399986,1755732640112,-1102.03978781,0.00026239,2]
[380399988,1755732640121,-762.6787284,0.00026245,2]
[380399990,1755732640130,-500.0,0.00026324,2]
[380399992,1755732640139,-500.0,0.00026324,2]
[380399994,1755732640148,-151.0,0.00026324,2]
[380399996,1755732640157,-151.79232132,0.00026324,2]
[380399998,1755732640166,-500.0,0.00026324,2]
[380400000,1755732640175,-762.6787284,0.00026345,2]
[380400002,1755732640184,-161.84881539,0.00026356,30]
[380400004,1755732640194,-161.8488154,0.00026356,30]
[380400006,1755732640203,-500.0,0.0002639,5]
[380400008,1755732640212,-973.0,0.00026415,2]
[380400010,1755732640221,-2154.0,0.00026415,2]
[380400012,1755732640230,-637.0,0.00026415,2]
[380400014,1755732640239,-408.0,0.00026415,2]
[380400016,1755732640248,-168.0,0.00026421,2]
[380400018,1755732640258,-168.0,0.00026427,7]
[380400019,1755732640267,-762.6787284,0.00026445,2]
[380400021,1755732640276,-619.0371092,0.00026448,5]
[380400023,1755732640285,-607.97,0.00026465,2]
[380400025,1755732640294,-2172.72478381,0.00026493,2]
[380400027,1755732640303,-2000.0,0.00026516,2]
[380400029,1755732640313,-1000.0,0.00026521,2]
[380400031,1755732640322,-762.6787284,0.00026545,2]
[380400033,1755732640331,-2220.64256171,0.00026562,2]
[380400035,1755732640341,-500.0,0.00026598,2]
[380400037,1755732640350,-500.0,0.00026598,2]
[380400039,1755732640360,-151.0,0.00026598,2]
[380400042,1755732640370,-500.0,0.00026598,2]
[380400044,1755732640379,-166.02871,0.00026639,20]
[380400045,1755732640389,-762.6787284,0.00026645,2]
[380400047,1755732640398,-161.84881539,0.00026685,30]
[380400050,1755732640407,-161.8488154,0.00026685,30]
[380400051,1755732640416,-360.0,0.00026696,2]
[380400053,1755732640426,-168.0,0.00026713,2]
[380400055,1755732640435,-1102.03978781,0.00026727,2]
[380400058,1755732640445,-762.6787284,0.00026745,2]
[380400060,1755732640454,-199.0,0.00026749,20]
[380400061,1755732640463,-168.0,0.0002678,7]
[380400063,1755732640474,-500.0,0.00026787,2]
[380400066,1755732640484,-1871.66004088,0.000268,7]
[380400068,1755732640496,-1229.64995912,0.000268,7]
[380400070,1755732640506,-586.22,0.000268,7]
[380400072,1755732640515,-700.0,0.000268,2]
[380400074,1755732640524,-216.9170744,0.000268,7]
[380400076,1755732640533,-375.94359665,0.000268,7]
[380400078,1755732640543,-844.05985274,0.000268,7]
[380400080,1755732640555,-215.82729805,0.000268,7]
[380400082,1755732640564,-500.0,0.00026817,2]
[380400084,1755732640573,-500.0,0.00026847,2]
[380400085,1755732640582,-500.0,0.00026853,2]
[380400088,1755732640591,-168.0,0.0002686,7]
[380400089,1755732640600,-50.18466676,0.00026865,2]
[380400119,1755732640870,-151.0,0.00026,7]
[380400121,1755732640879,-449.81533324,0.00026865,2]
[380400123,1755732640889,-500.0,0.00026872,2]
[380400125,1755732640898,-500.0,0.00026872,2]
[380400127,1755732640908,-239.84615473,0.00026872,2]
[380400129,1755732640917,-500.0,0.00026872,2]
[380400131,1755732640927,-499.3,0.00026874,2]
[380400133,1755732640936,-1100.0,0.00026884,2]
[380400135,1755732640946,-645.84,0.00026891,4]
[380400136,1755732640955,-151.0,0.00026904,2]
[380400137,1755732640964,-700.0,0.00026912,2]
[380400138,1755732640972,-500.0,0.00026939,2]
[380400139,1755732640981,-700.0,0.00026952,2]
[380400140,1755732640990,-700.0,0.00026957,2]
[380400141,1755732640999,-817.648,0.00026962,2]
[380400142,1755732641008,-2200.0,0.00026962,2]
[380400143,1755732641017,-500.0,0.00026969,2]
[380400144,1755732641026,-1188.08031717,0.0002699,2]
[380400145,1755732641035,-1100.0,0.00026997,2]
[380400146,1755732641044,-528.77847288,0.00027,3]
[380400147,1755732641053,-528.77847288,0.00027,3]
[380400148,1755732641063,-1100.0,0.00027,2]
[380400149,1755732641072,-417.15472785,0.00027,3]
[380400150,1755732641081,-417.15472785,0.00027,3]
[380400151,1755732641090,-160.8718701,0.00027003,2]
[380400152,1755732641100,-500.0,0.00027006,2]
[380400153,1755732641109,-153.0,0.00027006,2]
[380400154,1755732641118,-1100.0,0.0002701,2]
[380400155,1755732641127,-500.0,0.0002702,2]
[380400156,1755732641136,-500.0,0.00027022,2]
[380400157,1755732641145,-1100.0,0.00027031,2]
[380400158,1755732641154,-161.84881539,0.00027041,30]
[380400159,1755732641163,-500.0,0.00027055,2]
[380400160,1755732641172,-1100.0,0.00027062,2]
[380400161,1755732641180,-2500.0,0.00027064,2]
[380400162,1755732641190,-1500.0,0.00027068,2]
[380400163,1755732641199,-200.0,0.0002707,17]
[380400164,1755732641208,-802.0,0.0002707,7]
[380400165,1755732641217,-1100.0,0.00027082,2]
[380400166,1755732641226,-1100.0,0.00027086,2]
[380400167,1755732641235,-500.0,0.00027098,2]
[380400168,1755732641243,-500.0,0.00027103,2]
[380400169,1755732641253,-568.31871111,0.00027116,7]
[380400170,1755732641262,-998.6940768,0.00027123,3]
[380400171,1755732641272,-201.06147971,0.0002713,2]
[380400173,1755732641281,-500.0,0.00027136,2]
[380400174,1755732641290,-1100.0,0.00027136,2]
[380400175,1755732641299,-500.0,0.00027137,2]
[380400177,1755732641309,-1008.632255,0.0002714,5]
[380400179,1755732641319,-204.77215964,0.00027143,2]
[380400181,1755732641329,-500.0,0.00027146,2]
[380400183,1755732641338,-406.0,0.00027146,2]
[380400185,1755732641347,-500.0,0.00027146,2]
[380400187,1755732641357,-151.0,0.00027146,2]
[380400189,1755732641366,-196.58242605,0.00027146,2]
[380400191,1755732641376,-151.0,0.00027146,2]
[380400193,1755732641385,-1000.0,0.0002716,5]
[380400195,1755732641394,-168.0,0.00027168,2]
[380400197,1755732641404,-1100.0,0.00027172,2]
[380400199,1755732641413,-1000.0,0.0002718,5]
[380400201,1755732641423,-293.85068442,0.00027187,2]
[380400203,1755732641432,-1100.0,0.00027192,2]
[380400205,1755732641441,-2000.0,0.000272,2]
[380400207,1755732641451,-1000.0,0.000272,5]
[380400209,1755732641460,-1000.0,0.000272,2]
[380400211,1755732641469,-172.57443399,0.00027215,2]
[380400213,1755732641483,-1102.03978781,0.00027216,2]
[380400215,1755732641492,-2220.64256171,0.00027216,2]
[380400217,1755732641502,-599.54006826,0.00027216,2]
[380400219,1755732641511,-3400.07427249,0.00027216,2]
[380400221,1755732641522,-1000.0,0.0002722,5]
[380400223,1755732641531,-1000.0,0.00027221,2]
[380400225,1755732641540,-1000.0,0.0002724,5]
[380400227,1755732641550,-460.0,0.00027244,2]
[380400229,1755732641562,-1000.0,0.0002726,5]
[380400231,1755732641571,-700.0,0.00027272,2]
[380400233,1755732641580,-1188.08031717,0.00027277,2]
[380400235,1755732641590,-1000.0,0.0002728,5]
[380400237,1755732641599,-1141.367745,0.0002728,5]
[380400239,1755732641608,-607.97,0.00027287,2]
[380400241,1755732641618,-203.97,0.000273,2]
[380400242,1755732641627,-1000.0,0.000273,5]
[380400244,1755732641636,-1000.0,0.000273,5]
[380400246,1755732641646,-250.0,0.000273,10]
[380400248,1755732641655,-1188.08031717,0.00027306,2]
[380400250,1755732641664,-151.0,0.00027311,7]
[380400252,1755732641674,-151.0,0.00027311,7]
[380400254,1755732641683,-151.0,0.00027311,7]
[380400256,1755732641693,-152.0,0.00027311,7]
[380400258,1755732641702,-151.699383,0.00027311,7]
[380400260,1755732641711,-151.0,0.00027311,7]
[380400262,1755732641720,-151.0,0.00027311,7]
[380400264,1755732641729,-168.0,0.00027312,2]
[380400266,1755732641739,-300.0,0.00027313,2]
[380400268,1755732641748,-151.0,0.00027315,7]
[380400270,1755732641757,-151.0,0.00027315,7]
[380400272,1755732641767,-151.290743,0.00027315,7]
[380400274,1755732641776,-151.0,0.00027315,7]
[380400275,1755732641785,-151.0,0.00027315,7]
[380400277,1755732641794,-262.172738,0.00027315,7]
[380400279,1755732641805,-151.436135,0.00027315,7]
[380400281,1755732641814,-151.0,0.00027315,7]
[380400283,1755732641823,-151.0,0.00027315,7]
[380400285,1755732641832,-151.0,0.00027315,7]
[380400287,1755732641842,-193.738354,0.00027315,7]
[380400289,1755732641851,-151.0,0.00027315,7]
[380400291,1755732641861,-151.0,0.00027315,7]
[380400293,1755732641870,-239.481901,0.00027315,7]
[380400295,1755732641879,-151.0,0.00027315,7]
[380400297,1755732641955,-249.08017,0.00027315,7]
[380400298,1755732641965,-151.0,0.00027315,7]
[380400299,1755732641974,-151.0,0.00027315,7]
[380400300,1755732641984,-151.0,0.00027315,7]
[380400301,1755732641994,-151.0,0.00027315,7]
[380400302,1755732642004,-151.0,0.00027315,7]
[380400303,1755732642014,-256.570657,0.00027315,7]
[380400304,1755732642023,-165.335623,0.00027315,7]
[380400305,1755732642034,-165.335623,0.00027315,7]
[380400306,1755732642043,-165.335623,0.00027315,7]
[380400307,1755732642053,-165.335623,0.00027315,7]
[380400308,1755732642063,-165.335623,0.00027315,7]
[380400309,1755732642073,-165.335623,0.00027315,7]
[380400310,1755732642082,-165.335623,0.00027315,7]
[380400311,1755732642092,-165.335623,0.00027315,7]
[380400312,1755732642101,-165.335623,0.00027315,7]
[380400313,1755732642111,-165.335623,0.00027315,7]
[380400314,1755732642120,-165.335623,0.00027315,7]
[380400315,1755732642129,-165.335623,0.00027315,7]
[380400316,1755732642139,-165.335623,0.00027315,7]
[380400317,1755732642149,-165.335623,0.00027315,7]
[380400318,1755732642158,-165.335623,0.00027315,7]
[380400319,1755732642167,-165.335623,0.00027315,7]
[380400320,1755732642177,-165.335623,0.00027315,7]
[380400321,1755732642187,-165.335623,0.00027315,7]
[380400322,1755732642196,-165.335623,0.00027315,7]
[380400323,1755732642206,-165.335631,0.00027315,7]
[380400324,1755732642215,-151.0,0.00027315,7]
[380400325,1755732642225,-151.0,0.00027315,7]
[380400326,1755732642234,-151.0,0.00027315,7]
[380400327,1755732642243,-151.0,0.00027315,7]
[380400328,1755732642253,-581.0009137,0.00027315,2]
[380400329,1755732642262,-160.8718701,0.00027315,2]
[380400330,1755732642271,-581.0009137,0.00027315,2]
[380400331,1755732642281,-160.8718701,0.00027315,2]
[380400332,1755732642290,-160.8718701,0.00027315,2]
[380400333,1755732642299,-581.0009137,0.00027315,2]
[380400334,1755732642309,-160.8718701,0.00027315,2]
[380400335,1755732642318,-581.0009137,0.00027315,2]
[380400336,1755732642327,-160.8718701,0.00027315,2]
[380400338,1755732642337,-581.0009137,0.00027315,2]
[380400339,1755732642346,-160.8718701,0.00027315,2]
[380400340,1755732642355,-293.9452039,0.00027315,2]
[380400341,1755732642364,-153.0,0.00027315,2]
[380400342,1755732642374,-581.0009137,0.00027315,2]
[380400343,1755732642383,-153.0,0.00027315,2]
[380400344,1755732642392,-153.0,0.00027315,2]
[380400345,1755732642401,-293.9452039,0.00027315,2]
[380400346,1755732642410,-160.8718701,0.00027315,2]
[380400347,1755732642419,-581.0009137,0.00027315,2]
[380400348,1755732642428,-153.0,0.00027315,2]
[380400349,1755732642437,-153.0,0.00027315,2]
[380400350,1755732642445,-160.8718701,0.00027315,2]
[380400351,1755732642454,-293.9452039,0.00027315,2]
[380400352,1755732642464,-153.0,0.00027315,2]
[380400353,1755732642477,-581.0009137,0.00027315,2]
[380400354,1755732642488,-293.9452039,0.00027315,2]
[380400355,1755732642497,-160.8718701,0.00027315,2]
[380400356,1755732642507,-153.0,0.00027315,2]
[380400357,1755732642518,-153.0,0.00027315,2]
[380400358,1755732642526,-581.0009137,0.00027315,2]
[380400359,1755732642536,-153.0,0.00027315,2]
[380400360,1755732642545,-160.8718701,0.00027315,2]
[380400361,1755732642558,-293.9452039,0.00027315,2]
[380400362,1755732642567,-160.8718701,0.00027315,2]
[380400363,1755732642576,-243.2153682,0.00027315,2]
[380400364,1755732642585,-160.8718701,0.00027315,2]
[380400365,1755732642595,-160.8718701,0.00027315,2]
[380400366,1755732642604,-160.8718701,0.00027315,2]
[380400367,1755732642613,-698.7156691,0.00027315,2]
[380400368,1755732642622,-475.0171241,0.00027315,2]
[380400369,1755732642631,-160.8718701,0.00027315,2]
[380400370,1755732642640,-581.0009137,0.00027315,2]
[380400371,1755732642649,-306.0,0.00027315,2]
[380400372,1755732642658,-1162.0018274,0.00027315,2]
[380400373,1755732642667,-306.0,0.00027315,2]
[380400374,1755732642676,-2419.2691613,0.00027316,2]
[380400375,1755732642685,-151.0,0.00027316,7]
[380400376,1755732642694,-151.0,0.00027316,7]
[380400378,1755732642703,-222.35384,0.00027316,7]
[380400380,1755732642712,-151.0,0.00027316,7]
[380400382,1755732642721,-151.0,0.00027316,7]
[380400383,1755732642731,-151.0,0.00027316,7]
[380400384,1755732642739,-151.0,0.00027316,7]
[380400385,1755732642748,-151.0,0.00027316,7]
[380400386,1755732642757,-151.0,0.00027316,7]
[380400387,1755732642766,-151.0,0.00027316,7]
[380400388,1755732642775,-171.249432,0.00027316,7]
[380400389,1755732642784,-151.0,0.00027316,7]
[380400391,1755732642793,-151.0,0.00027316,7]
[380400392,1755732642802,-151.0,0.00027316,7]
[380400393,1755732642811,-229.918524,0.00027316,7]
[380400394,1755732642819,-151.0,0.00027316,7]
[380400395,1755732642829,-151.0,0.00027316,7]
[380400396,1755732642837,-151.0,0.00027316,7]
[380400398,1755732642846,-151.0,0.00027316,7]
[380400399,1755732642855,-274.215444,0.00027316,7]
[380400400,1755732642864,-1000.0,0.00027316,2]
[380400401,1755732642873,-1000.0,0.00027316,2]
[380400402,1755732642882,-1000.0,0.00027316,2]
[380400403,1755732642891,-1000.0,0.00027316,2]
[380400404,1755732642900,-1000.0,0.00027316,2]
[380400405,1755732642909,-1000.0,0.00027316,2]
[380400406,1755732642918,-1000.0,0.00027316,2]
[380400407,1755732642928,-1000.0,0.00027316,2]
[380400408,1755732642936,-1000.0,0.00027316,2]
[380400409,1755732642945,-1000.0,0.00027316,2]
[380400410,1755732642954,-1000.0,0.00027316,2]
[380400411,1755732642963,-1000.0,0.00027316,2]
[380400412,1755732643036,-1000.0,0.00027316,2]
[380400413,1755732643046,-1097.99943,0.00027316,2]
[380400414,1755732643055,-151.0,0.00027316,7]
[380400415,1755732643064,-151.0,0.00027316,7]
[380400416,1755732643073,-151.0,0.00027316,7]
[380400417,1755732643082,-151.0,0.00027316,7]
[380400418,1755732643092,-151.0,0.00027316,7]
[380400419,1755732643101,-151.0,0.00027316,7]
[380400420,1755732643110,-166.075164,0.00027316,7]
[380400421,1755732643119,-151.0,0.00027316,7]
[380400422,1755732643128,-151.0,0.00027316,7]
[380400423,1755732643137,-151.0,0.00027316,7]
[380400424,1755732643146,-151.0,0.00027316,7]
[380400425,1755732643155,-193.296323,0.00027316,7]
[380400426,1755732643164,-151.0,0.00027316,7]
[380400427,1755732643173,-151.0,0.00027316,7]
[380400428,1755732643182,-151.0,0.00027316,7]
[380400429,1755732643191,-151.0,0.00027316,7]
[380400430,1755732643200,-151.0,0.00027316,7]
[380400431,1755732643209,-151.0,0.00027316,7]
[380400432,1755732643218,-151.0,0.00027316,7]
[380400433,1755732643227,-151.0,0.00027316,7]
[380400434,1755732643236,-151.0,0.00027316,7]
[380400435,1755732643247,-151.0,0.00027316,7]
[380400436,1755732643256,-157.718694,0.00027316,7]
[380400437,1755732643265,-176.124484,0.00027316,7]
[380400438,1755732643274,-151.0,0.00027316,7]
[380400439,1755732643282,-151.0,0.00027316,7]
[380400440,1755732643291,-151.0,0.00027316,7]
[380400442,1755732643300,-151.0,0.00027316,7]
[380400443,1755732643309,-151.0,0.00027316,7]
[380400444,1755732643318,-151.0,0.00027316,7]
[380400446,1755732643327,-151.0,0.00027316,7]
[380400448,1755732643336,-151.0,0.00027316,7]
[380400450,1755732643344,-151.0,0.00027316,7]
[380400452,1755732643354,-151.0,0.00027316,7]
[380400454,1755732643362,-151.0,0.00027316,7]
[380400456,1755732643371,-151.0,0.00027316,7]
[380400458,1755732643380,-151.0,0.00027316,7]
[380400459,1755732643389,-151.0,0.00027316,7]
[380400460,1755732643398,-206.383516,0.00027316,7]
[380400461,1755732643407,-151.0,0.00027316,7]
[380400462,1755732643415,-151.0,0.00027316,7]
[380400463,1755732643425,-151.0,0.00027316,7]
[380400464,1755732643434,-151.0,0.00027316,7]
[380400465,1755732643443,-151.0,0.00027316,7]
[380400466,1755732643451,-151.0,0.00027316,7]
[380400467,1755732643460,-151.0,0.00027316,7]
[380400468,1755732643469,-151.0,0.00027316,7]
[380400469,1755732643481,-51.10263645,0.00027316,7]
[380400470,1755732644440,-370000.0,0.000246,2]
[380400471,1755732644451,-583.06220157,0.00024899,2]
[380400472,1755732644460,-583.06220157,0.00024899,2]